[Event "Late-Titled-Tuesday-Blitz-September-26-2023"]
[Site "Chess.com"]
[Date "2023.09.26"]
[Round "4"]
[White "FrankDux44"]
[Black "BillieKimbah"]
[Result "0-1"]
[WhiteElo "2572"]
[BlackElo "2971"]
[TimeControl "180+1"]
[EndTime "14:34:56 PDT"]
[Termination "BillieKimbah won by resignation"]

1. d4 {[%clk 0:02:48.3]} 1... Nf6 {[%clk 0:02:59.7]} 2. c4 {[%clk 0:02:41]} 2...
d6 {[%clk 0:02:59.7]} 3. Nc3 {[%clk 0:02:40.8]} 3... Bf5 {[%clk 0:02:59.2]} 4.
Nf3 {[%clk 0:02:37.6]} 4... g6 {[%clk 0:02:58.8]} 5. g3 {[%clk 0:02:37.5]} 5...
Bg7 {[%clk 0:02:58.2]} 6. Bg2 {[%clk 0:02:38.1]} 6... Ne4 {[%clk 0:02:58.3]} 7.
Qb3 {[%clk 0:02:20.3]} 7... Nxc3 {[%clk 0:02:57.3]} 8. bxc3 {[%clk 0:02:21.2]}
8... Bc8 {[%clk 0:02:55.9]} 9. h4 {[%clk 0:02:18.5]} 9... h6 {[%clk 0:02:49]}
10. h5 {[%clk 0:02:12]} 10... g5 {[%clk 0:02:48.9]} 11. e4 {[%clk 0:02:12.6]}
11... Nc6 {[%clk 0:02:47.9]} 12. Be3 {[%clk 0:02:11.8]} 12... b6 {[%clk
0:02:46.3]} 13. Nd2 {[%clk 0:01:59.8]} 13... Bb7 {[%clk 0:02:42.8]} 14. f4
{[%clk 0:01:52.1]} 14... gxf4 {[%clk 0:02:41.1]} 15. gxf4 {[%clk 0:01:51.4]}
15... Qd7 {[%clk 0:02:39.1]} 16. Bh3 {[%clk 0:01:49.1]} 16... e6 {[%clk
0:02:39.1]} 17. Rg1 {[%clk 0:01:31.4]} 17... Bf6 {[%clk 0:02:39.1]} 18. O-O-O
{[%clk 0:01:29.1]} 18... O-O-O {[%clk 0:02:35.1]} 19. e5 {[%clk 0:01:12.1]}
19... Na5 {[%clk 0:02:31.8]} 20. Qc2 {[%clk 0:01:11.2]} 20... dxe5 {[%clk
0:02:28.5]} 21. fxe5 {[%clk 0:01:10.9]} 21... Be7 {[%clk 0:02:24.1]} 22. Rdf1
{[%clk 0:01:07]} 22... Ba6 {[%clk 0:02:15]} 23. Rxf7 {[%clk 0:00:57.1]} 23...
Ba3+ {[%clk 0:02:14.4]} 0-1

[Event "Late-Titled-Tuesday-Blitz-September-26-2023"]
[Site "Chess.com"]
[Date "2023.09.26"]
[Round "4"]
[White "mitrabhaa"]
[Black "rasmussvane"]
[Result "0-1"]
[WhiteElo "2831"]
[BlackElo "2992"]
[TimeControl "180+1"]
[EndTime "14:35:05 PDT"]
[Termination "rasmussvane won by resignation"]

1. Nf3 {[%clk 0:03:00.9]} 1... d5 {[%clk 0:02:59.7]} 2. e3 {[%clk 0:03:00.9]}
2... Nf6 {[%clk 0:02:59.4]} 3. c4 {[%clk 0:03:00.7]} 3... c6 {[%clk 0:02:59.1]}
4. Nc3 {[%clk 0:03:00.7]} 4... a6 {[%clk 0:02:58]} 5. d4 {[%clk 0:02:56.7]} 5...
e6 {[%clk 0:02:51.9]} 6. c5 {[%clk 0:02:48.6]} 6... Nbd7 {[%clk 0:02:51.2]} 7.
b4 {[%clk 0:02:47.6]} 7... g6 {[%clk 0:02:50.7]} 8. Bb2 {[%clk 0:02:47.2]} 8...
Bg7 {[%clk 0:02:50.5]} 9. Bd3 {[%clk 0:02:44.5]} 9... O-O {[%clk 0:02:49.8]} 10.
a4 {[%clk 0:02:43.9]} 10... e5 {[%clk 0:02:43.3]} 11. dxe5 {[%clk 0:02:40.9]}
11... Ng4 {[%clk 0:02:41.7]} 12. Ne2 {[%clk 0:02:38.8]} 12... a5 {[%clk
0:02:32.1]} 13. b5 {[%clk 0:02:29.1]} 13... Nxc5 {[%clk 0:02:26.4]} 14. Bc2
{[%clk 0:02:29.1]} 14... Nd7 {[%clk 0:02:24.7]} 15. Ned4 {[%clk 0:02:19.4]}
15... Ngxe5 {[%clk 0:02:22.3]} 16. O-O {[%clk 0:02:16.3]} 16... Nxf3+ {[%clk
0:02:13.3]} 17. Qxf3 {[%clk 0:02:17.2]} 17... c5 {[%clk 0:02:13.8]} 18. Ba3
{[%clk 0:02:07.2]} 18... cxd4 {[%clk 0:02:09.5]} 19. Bxf8 {[%clk 0:02:07.8]}
19... Nxf8 {[%clk 0:02:07.8]} 20. exd4 {[%clk 0:02:07.7]} 20... Ne6 {[%clk
0:02:08.2]} 21. Bb3 {[%clk 0:02:04.8]} 21... Nxd4 {[%clk 0:02:05.4]} 22. Qxd5
{[%clk 0:02:03.2]} 22... Qxd5 {[%clk 0:02:05.7]} 23. Bxd5 {[%clk 0:02:04.1]}
23... Ne2+ {[%clk 0:02:06.3]} 24. Kh1 {[%clk 0:02:04.7]} 24... Bxa1 {[%clk
0:02:06.9]} 25. Rxa1 {[%clk 0:02:05.6]} 25... Nf4 {[%clk 0:01:45]} 26. Bf3
{[%clk 0:02:01.9]} 26... Rb8 {[%clk 0:01:39.9]} 27. Rc1 {[%clk 0:01:55.7]} 27...
Be6 {[%clk 0:01:37.5]} 28. Kg1 {[%clk 0:01:42.4]} 28... b6 {[%clk 0:01:35.6]}
29. g3 {[%clk 0:01:37.9]} 29... Nd3 {[%clk 0:01:35.6]} 0-1

[Event "Late-Titled-Tuesday-Blitz-September-26-2023"]
[Site "Chess.com"]
[Date "2023.09.26"]
[Round "4"]
[White "lamomiajunior"]
[Black "DvaHrasta"]
[Result "1-0"]
[WhiteElo "2733"]
[BlackElo "2511"]
[TimeControl "180+1"]
[EndTime "14:35:06 PDT"]
[Termination "lamomiajunior won on time"]

1. d4 {[%clk 0:03:00.9]} 1... Nf6 {[%clk 0:02:59.2]} 2. c4 {[%clk 0:03:01]} 2...
e6 {[%clk 0:02:59.2]} 3. Nc3 {[%clk 0:03:01.5]} 3... Bb4 {[%clk 0:02:59.2]} 4.
f3 {[%clk 0:03:01.3]} 4... d5 {[%clk 0:02:52.3]} 5. a3 {[%clk 0:03:00.3]} 5...
Bxc3+ {[%clk 0:02:51.7]} 6. bxc3 {[%clk 0:03:01.2]} 6... O-O {[%clk 0:02:49.4]}
7. cxd5 {[%clk 0:03:01.2]} 7... exd5 {[%clk 0:02:48.3]} 8. e3 {[%clk 0:03:01]}
8... b6 {[%clk 0:02:46.5]} 9. Bd3 {[%clk 0:03:01.3]} 9... c5 {[%clk 0:02:46.4]}
10. Ne2 {[%clk 0:03:01.8]} 10... Ba6 {[%clk 0:02:46.4]} 11. O-O {[%clk
0:03:02.1]} 11... Bxd3 {[%clk 0:02:45.7]} 12. Qxd3 {[%clk 0:03:03]} 12... Nc6
{[%clk 0:02:45.4]} 13. Bb2 {[%clk 0:03:03.6]} 13... Re8 {[%clk 0:02:45.4]} 14.
Ng3 {[%clk 0:03:04.2]} 14... Rc8 {[%clk 0:02:45.6]} 15. Rae1 {[%clk 0:03:04]}
15... cxd4 {[%clk 0:02:33.2]} 16. cxd4 {[%clk 0:02:59.1]} 16... Na5 {[%clk
0:02:31.6]} 17. e4 {[%clk 0:02:56.1]} 17... Nc4 {[%clk 0:02:30.8]} 18. Bc1
{[%clk 0:02:56.4]} 18... dxe4 {[%clk 0:02:28.2]} 19. fxe4 {[%clk 0:02:57.3]}
19... Ne5 {[%clk 0:02:26.9]} 20. Qd1 {[%clk 0:02:52.6]} 20... Ng6 {[%clk
0:02:23]} 21. Bb2 {[%clk 0:02:48.6]} 21... Rxe4 {[%clk 0:02:14]} 22. Nxe4 {[%clk
0:02:46]} 1-0

[Event "Late-Titled-Tuesday-Blitz-September-26-2023"]
[Site "Chess.com"]
[Date "2023.09.26"]
[Round "4"]
[White "leotobares"]
[Black "amanmuhammethommadov"]
[Result "0-1"]
[WhiteElo "2363"]
[BlackElo "2594"]
[TimeControl "180+1"]
[EndTime "14:36:16 PDT"]
[Termination "amanmuhammethommadov won by checkmate"]

1. d4 {[%clk 0:02:54.6]} 1... Nf6 {[%clk 0:02:59.7]} 2. Nf3 {[%clk 0:02:53.4]}
2... g6 {[%clk 0:02:59.7]} 3. c4 {[%clk 0:02:53.4]} 3... Bg7 {[%clk 0:03:00.1]}
4. Nc3 {[%clk 0:02:53.1]} 4... O-O {[%clk 0:03:00.3]} 5. e4 {[%clk 0:02:53.1]}
5... d6 {[%clk 0:03:00.8]} 6. Be2 {[%clk 0:02:53]} 6... e5 {[%clk 0:03:00.8]} 7.
O-O {[%clk 0:02:52.5]} 7... Nc6 {[%clk 0:03:00.8]} 8. d5 {[%clk 0:02:52.9]} 8...
Ne7 {[%clk 0:03:00.6]} 9. b4 {[%clk 0:02:52.6]} 9... a5 {[%clk 0:02:59.7]} 10.
bxa5 {[%clk 0:02:51.8]} 10... Rxa5 {[%clk 0:02:59.6]} 11. Nd2 {[%clk 0:02:52.1]}
11... b6 {[%clk 0:02:58]} 12. Nb3 {[%clk 0:02:51.9]} 12... Ra8 {[%clk
0:02:57.7]} 13. a4 {[%clk 0:02:51]} 13... Nd7 {[%clk 0:02:58.1]} 14. Be3 {[%clk
0:02:46.8]} 14... f5 {[%clk 0:02:57.6]} 15. f3 {[%clk 0:02:46.2]} 15... Nf6
{[%clk 0:02:54.4]} 16. a5 {[%clk 0:02:44.3]} 16... bxa5 {[%clk 0:02:54.6]} 17.
Nxa5 {[%clk 0:02:40.3]} 17... Nh5 {[%clk 0:02:54.3]} 18. Nc6 {[%clk 0:02:34.8]}
18... Rxa1 {[%clk 0:02:52.4]} 19. Qxa1 {[%clk 0:02:33.4]} 19... Nxc6 {[%clk
0:02:52.5]} 20. dxc6 {[%clk 0:02:33.2]} 20... Nf4 {[%clk 0:02:48.5]} 21. Rb1
{[%clk 0:02:22.3]} 21... Qg5 {[%clk 0:02:47.1]} 22. Bxf4 {[%clk 0:02:16.5]}
22... exf4 {[%clk 0:02:48]} 23. Qa3 {[%clk 0:02:10.3]} 23... h5 {[%clk
0:02:34.1]} 24. Nd5 {[%clk 0:02:04.7]} 24... h4 {[%clk 0:02:33.2]} 25. h3 {[%clk
0:01:50.9]} 25... fxe4 {[%clk 0:02:26.7]} 26. fxe4 {[%clk 0:01:50.8]} 26... f3
{[%clk 0:02:25]} 27. Bxf3 {[%clk 0:01:49.5]} 27... Bxh3 {[%clk 0:02:24.9]} 28.
Kh1 {[%clk 0:01:38.1]} 28... Be5 {[%clk 0:02:08.2]} 29. Qe3 {[%clk 0:01:11.7]}
29... Qg3 {[%clk 0:02:02.7]} 30. Kg1 {[%clk 0:00:47.5]} 30... Bxg2 {[%clk
0:01:57.7]} 31. Ne7+ {[%clk 0:00:42.9]} 31... Kh7 {[%clk 0:01:55.4]} 32. Nf5
{[%clk 0:00:33.4]} 32... Rxf5 {[%clk 0:01:48.6]} 33. exf5 {[%clk 0:00:31.3]}
33... Bh3+ {[%clk 0:01:48.9]} 34. Kh1 {[%clk 0:00:28.5]} 34... Qh2# {[%clk
0:01:49]} 0-1

[Event "Late-Titled-Tuesday-Blitz-September-26-2023"]
[Site "Chess.com"]
[Date "2023.09.26"]
[Round "4"]
[White "GianmarcoVaR"]
[Black "pirulillo"]
[Result "1-0"]
[WhiteElo "2585"]
[BlackElo "2361"]
[TimeControl "180+1"]
[EndTime "14:36:17 PDT"]
[Termination "GianmarcoVaR won by resignation"]

1. e4 {[%clk 0:03:00.9]} 1... c5 {[%clk 0:02:52.1]} 2. d4 {[%clk 0:03:01.3]}
2... cxd4 {[%clk 0:02:49.4]} 3. Bc4 {[%clk 0:03:01.5]} 3... e6 {[%clk
0:02:49.1]} 4. Nf3 {[%clk 0:03:01.6]} 4... a6 {[%clk 0:02:46.1]} 5. O-O {[%clk
0:03:00.1]} 5... b5 {[%clk 0:02:45.2]} 6. Bb3 {[%clk 0:03:00.9]} 6... Bb7 {[%clk
0:02:44.4]} 7. Re1 {[%clk 0:03:00.3]} 7... Nc6 {[%clk 0:02:42.7]} 8. c3 {[%clk
0:02:59.7]} 8... d3 {[%clk 0:02:37.3]} 9. Qxd3 {[%clk 0:02:56.4]} 9... Qc7
{[%clk 0:02:31.4]} 10. Bg5 {[%clk 0:02:51.3]} 10... Nf6 {[%clk 0:02:22.1]} 11.
e5 {[%clk 0:02:50.2]} 11... Ng4 {[%clk 0:02:16.5]} 12. Qe2 {[%clk 0:02:24.7]}
12... Bc5 {[%clk 0:02:07.4]} 13. Bh4 {[%clk 0:02:19.8]} 13... Qb6 {[%clk
0:01:52]} 14. Nbd2 {[%clk 0:02:19.2]} 14... Nh6 {[%clk 0:01:43.2]} 15. Ne4
{[%clk 0:02:18.7]} 15... Bf8 {[%clk 0:01:41.3]} 16. Rad1 {[%clk 0:02:16.4]}
16... Nf5 {[%clk 0:01:40.6]} 17. Bg5 {[%clk 0:01:56.2]} 17... h6 {[%clk
0:01:39.1]} 18. Bf4 {[%clk 0:01:54]} 18... Be7 {[%clk 0:01:36]} 19. g4 {[%clk
0:01:42]} 19... Nh4 {[%clk 0:01:34.5]} 20. Nxh4 {[%clk 0:01:36.8]} 20... Bxh4
{[%clk 0:01:32.8]} 21. Nd6+ {[%clk 0:01:37.2]} 21... Ke7 {[%clk 0:01:29.7]} 22.
Qf3 {[%clk 0:01:28.4]} 22... Na5 {[%clk 0:01:23]} 23. Bg5+ {[%clk 0:01:03.6]}
23... f6 {[%clk 0:01:16.7]} 24. exf6+ {[%clk 0:01:00.6]} 24... Kd8 {[%clk
0:00:59]} 25. Nxb7+ {[%clk 0:00:59.9]} 25... Kc7 {[%clk 0:00:59.9]} 26. Bf4+
{[%clk 0:00:52.1]} 1-0

[Event "Late-Titled-Tuesday-Blitz-September-26-2023"]
[Site "Chess.com"]
[Date "2023.09.26"]
[Round "4"]
[White "infinitegiantkiller"]
[Black "MMSANCHEZ"]
[Result "0-1"]
[WhiteElo "2452"]
[BlackElo "2665"]
[TimeControl "180+1"]
[EndTime "14:36:18 PDT"]
[Termination "MMSANCHEZ won by checkmate"]

1. Nf3 {[%clk 0:03:00]} 1... e6 {[%clk 0:02:57.8]} 2. g3 {[%clk 0:03:00.9]} 2...
d5 {[%clk 0:02:57.3]} 3. Bg2 {[%clk 0:03:01.2]} 3... Nf6 {[%clk 0:02:57.4]} 4.
O-O {[%clk 0:03:01.8]} 4... c5 {[%clk 0:02:56.7]} 5. b3 {[%clk 0:03:02.1]} 5...
Nc6 {[%clk 0:02:56.6]} 6. Bb2 {[%clk 0:03:02.7]} 6... Bd6 {[%clk 0:02:56.6]} 7.
d4 {[%clk 0:03:03.1]} 7... O-O {[%clk 0:02:54.5]} 8. Nbd2 {[%clk 0:03:02]} 8...
cxd4 {[%clk 0:02:54.1]} 9. Nxd4 {[%clk 0:03:02.9]} 9... e5 {[%clk 0:02:53.2]}
10. Nxc6 {[%clk 0:03:02]} 10... bxc6 {[%clk 0:02:54.1]} 11. c4 {[%clk
0:03:02.5]} 11... Be6 {[%clk 0:02:54.1]} 12. Rc1 {[%clk 0:03:01.9]} 12... Qe7
{[%clk 0:02:52.4]} 13. e3 {[%clk 0:03:01.5]} 13... Rfd8 {[%clk 0:02:51]} 14. Qc2
{[%clk 0:03:01]} 14... h5 {[%clk 0:02:41.1]} 15. Nf3 {[%clk 0:02:53.2]} 15...
Bg4 {[%clk 0:02:38]} 16. h4 {[%clk 0:02:48.9]} 16... Ne4 {[%clk 0:02:30.3]} 17.
Rfd1 {[%clk 0:02:44.3]} 17... Rac8 {[%clk 0:02:24.5]} 18. Qb1 {[%clk 0:02:28.7]}
18... Qf6 {[%clk 0:02:17.2]} 19. cxd5 {[%clk 0:01:59.8]} 19... Bxf3 {[%clk
0:02:15]} 20. Bxf3 {[%clk 0:01:44.9]} 20... Qxf3 {[%clk 0:02:13.9]} 21. Rf1
{[%clk 0:01:31.8]} 21... Nd2 {[%clk 0:02:00]} 22. Qd3 {[%clk 0:01:12.2]} 22...
Nxf1 {[%clk 0:01:58.8]} 23. Rxf1 {[%clk 0:01:13.1]} 23... Qxd5 {[%clk
0:01:52.9]} 24. Qe2 {[%clk 0:01:08.6]} 24... g6 {[%clk 0:01:43]} 25. Rd1 {[%clk
0:01:07.4]} 25... Qe6 {[%clk 0:01:43.1]} 26. Rc1 {[%clk 0:01:02.3]} 26... Be7
{[%clk 0:01:42.1]} 27. Qc2 {[%clk 0:00:51.4]} 27... Qf5 {[%clk 0:01:37.2]} 28.
Qc3 {[%clk 0:00:48.2]} 28... Rd3 {[%clk 0:01:33.6]} 29. Qa5 {[%clk 0:00:43.4]}
29... Rcd8 {[%clk 0:01:29.7]} 30. Rc2 {[%clk 0:00:36.5]} 30... Rd1+ {[%clk
0:01:27.6]} 31. Kg2 {[%clk 0:00:36.2]} 31... Qe4+ {[%clk 0:01:25.6]} 32. Kh2
{[%clk 0:00:35.6]} 32... Qh1# {[%clk 0:01:24.2]} 0-1

[Event "Late-Titled-Tuesday-Blitz-September-26-2023"]
[Site "Chess.com"]
[Date "2023.09.26"]
[Round "4"]
[White "MKlose11"]
[Black "Roedor"]
[Result "0-1"]
[WhiteElo "2604"]
[BlackElo "2383"]
[TimeControl "180+1"]
[EndTime "14:36:24 PDT"]
[Termination "Roedor won by resignation"]

1. e4 {[%clk 0:02:54.3]} 1... e5 {[%clk 0:02:59.7]} 2. Nf3 {[%clk 0:02:50.2]}
2... Nc6 {[%clk 0:02:59.8]} 3. d4 {[%clk 0:02:51.1]} 3... exd4 {[%clk
0:03:00.3]} 4. Bc4 {[%clk 0:02:50.6]} 4... Bc5 {[%clk 0:02:59.6]} 5. Ng5 {[%clk
0:02:49.8]} 5... Nh6 {[%clk 0:02:59.2]} 6. Nxf7 {[%clk 0:02:50.1]} 6... Nxf7
{[%clk 0:03:00.1]} 7. Bxf7+ {[%clk 0:02:50.4]} 7... Kxf7 {[%clk 0:03:01]} 8.
Qh5+ {[%clk 0:02:50.8]} 8... g6 {[%clk 0:03:01.6]} 9. Qxc5 {[%clk 0:02:51.6]}
9... d5 {[%clk 0:03:02.2]} 10. e5 {[%clk 0:02:51]} 10... Re8 {[%clk 0:02:52.7]}
11. O-O {[%clk 0:02:49.7]} 11... Rxe5 {[%clk 0:02:52]} 12. Nd2 {[%clk
0:02:48.9]} 12... Qe7 {[%clk 0:02:48.3]} 13. Qb5 {[%clk 0:02:48.5]} 13... a6
{[%clk 0:02:38.1]} 14. Qb3 {[%clk 0:02:47.2]} 14... Kg7 {[%clk 0:02:22.5]} 15.
Nf3 {[%clk 0:02:45.7]} 15... Rf5 {[%clk 0:01:57.2]} 16. Qd3 {[%clk 0:02:42.2]}
16... Qe4 {[%clk 0:01:54.9]} 17. Rd1 {[%clk 0:02:41]} 17... Qxd3 {[%clk
0:01:53.2]} 18. Rxd3 {[%clk 0:02:41.9]} 18... Bd7 {[%clk 0:01:46.4]} 19. Nxd4
{[%clk 0:02:37]} 19... Nxd4 {[%clk 0:01:47.3]} 20. Rxd4 {[%clk 0:02:37.9]} 20...
c5 {[%clk 0:01:45.7]} 21. Rd1 {[%clk 0:02:37.2]} 21... d4 {[%clk 0:01:43.5]} 22.
b4 {[%clk 0:02:34.6]} 22... b6 {[%clk 0:01:37.6]} 23. Bb2 {[%clk 0:02:19.1]}
23... Ba4 {[%clk 0:01:36.2]} 24. Rd2 {[%clk 0:02:17.3]} 24... Re8 {[%clk
0:01:30.9]} 25. c3 {[%clk 0:02:09.8]} 25... Rfe5 {[%clk 0:01:26]} 26. h3 {[%clk
0:02:04.7]} 26... Re2 {[%clk 0:01:25.5]} 27. Bc1 {[%clk 0:01:36.7]} 27... Rxd2
{[%clk 0:01:10.4]} 28. Bxd2 {[%clk 0:01:35.7]} 28... Re2 {[%clk 0:01:10.8]} 29.
Be1 {[%clk 0:01:24.1]} 29... d3 {[%clk 0:01:03.8]} 30. Kf1 {[%clk 0:01:24.3]}
30... c4 {[%clk 0:00:57.9]} 31. f3 {[%clk 0:01:15.7]} 31... Rb2 {[%clk
0:00:55.2]} 32. Bf2 {[%clk 0:01:10.1]} 32... d2 {[%clk 0:00:52.7]} 33. Bd4+
{[%clk 0:01:05.6]} 33... Kf7 {[%clk 0:00:52.9]} 34. Ke2 {[%clk 0:01:05.7]} 34...
d1=Q+ {[%clk 0:00:52.5]} 0-1

[Event "Late-Titled-Tuesday-Blitz-September-26-2023"]
[Site "Chess.com"]
[Date "2023.09.26"]
[Round "4"]
[White "slorovel"]
[Black "Dewarfd"]
[Result "1-0"]
[WhiteElo "2471"]
[BlackElo "2217"]
[TimeControl "180+1"]
[EndTime "14:36:27 PDT"]
[Termination "slorovel won by resignation"]

1. e4 {[%clk 0:03:00.9]} 1... e5 {[%clk 0:03:00]} 2. Nf3 {[%clk 0:03:00.2]} 2...
Nc6 {[%clk 0:03:00.1]} 3. d4 {[%clk 0:03:00.1]} 3... exd4 {[%clk 0:03:00.2]} 4.
Bc4 {[%clk 0:03:00.6]} 4... Nf6 {[%clk 0:02:59.3]} 5. O-O {[%clk 0:02:59]} 5...
Nxe4 {[%clk 0:02:58.2]} 6. Re1 {[%clk 0:02:59.5]} 6... d5 {[%clk 0:02:58.3]} 7.
Bxd5 {[%clk 0:02:59.9]} 7... Qxd5 {[%clk 0:02:58.2]} 8. Nc3 {[%clk 0:03:00.8]}
8... Qd8 {[%clk 0:02:44.3]} 9. Rxe4+ {[%clk 0:02:58.1]} 9... Be6 {[%clk
0:02:44.9]} 10. Nxd4 {[%clk 0:02:58.1]} 10... Nxd4 {[%clk 0:02:42.8]} 11. Rxd4
{[%clk 0:02:58.1]} 11... Bd6 {[%clk 0:02:35.3]} 12. Bf4 {[%clk 0:02:57.6]} 12...
O-O {[%clk 0:02:32.9]} 13. Bxd6 {[%clk 0:02:58.2]} 13... cxd6 {[%clk 0:02:33.5]}
14. Rxd6 {[%clk 0:02:59.1]} 14... Qg5 {[%clk 0:02:11.9]} 15. Ne4 {[%clk
0:02:56.8]} 15... Qe5 {[%clk 0:02:08.4]} 16. Qd4 {[%clk 0:02:45.4]} 16... Qxd4
{[%clk 0:01:56]} 17. Rxd4 {[%clk 0:02:46.3]} 17... h6 {[%clk 0:01:55.3]} 18.
Rad1 {[%clk 0:02:43.4]} 18... Rac8 {[%clk 0:01:53.1]} 19. c3 {[%clk 0:02:38]}
19... a6 {[%clk 0:01:35.7]} 20. a4 {[%clk 0:02:36.7]} 20... Bb3 {[%clk
0:01:34.6]} 21. R1d2 {[%clk 0:02:34.1]} 21... Rc6 {[%clk 0:01:28.1]} 22. Rb4
{[%clk 0:02:31.7]} 22... Re6 {[%clk 0:01:18.6]} 23. f3 {[%clk 0:02:23.6]} 23...
f5 {[%clk 0:01:11.5]} 24. Nc5 {[%clk 0:02:21.3]} 24... Re1+ {[%clk 0:00:54.6]}
25. Kf2 {[%clk 0:02:19.8]} 25... Rd1 {[%clk 0:00:54.5]} 26. Nxb3 {[%clk
0:02:18.5]} 26... Rxd2+ {[%clk 0:00:49]} 27. Nxd2 {[%clk 0:02:19.4]} 27... Rb8
{[%clk 0:00:49.4]} 28. a5 {[%clk 0:02:19]} 28... Kf7 {[%clk 0:00:49]} 29. Nc4
{[%clk 0:02:16.5]} 29... Ke6 {[%clk 0:00:48.1]} 30. Rb6+ {[%clk 0:02:12.7]}
30... Kd5 {[%clk 0:00:47.3]} 31. Nd6 {[%clk 0:02:13.6]} 31... Kc5 {[%clk
0:00:42.6]} 32. b4+ {[%clk 0:02:12]} 32... Kd5 {[%clk 0:00:40.7]} 33. c4+ {[%clk
0:02:10.4]} 33... Kd4 {[%clk 0:00:39.4]} 34. Nxb7 {[%clk 0:02:10.5]} 34... Re8
{[%clk 0:00:32.7]} 35. c5 {[%clk 0:02:07.8]} 35... Kd3 {[%clk 0:00:31]} 36. Rd6+
{[%clk 0:02:05.1]} 36... Kc3 {[%clk 0:00:30]} 37. c6 {[%clk 0:02:05.3]} 37... f4
{[%clk 0:00:28.7]} 38. c7 {[%clk 0:02:04.6]} 38... Rc8 {[%clk 0:00:26.5]} 39.
Rc6+ {[%clk 0:02:05.1]} 39... Kxb4 {[%clk 0:00:26.3]} 40. Nd6 {[%clk 0:02:06]}
1-0

[Event "Late-Titled-Tuesday-Blitz-September-26-2023"]
[Site "Chess.com"]
[Date "2023.09.26"]
[Round "4"]
[White "vova-79"]
[Black "Zaro1309"]
[Result "1-0"]
[WhiteElo "2617"]
[BlackElo "2322"]
[TimeControl "180+1"]
[EndTime "14:36:41 PDT"]
[Termination "vova-79 won by checkmate"]

1. d4 {[%clk 0:03:00.9]} 1... d5 {[%clk 0:02:59.4]} 2. c4 {[%clk 0:03:00.4]}
2... e6 {[%clk 0:03:00.1]} 3. Nc3 {[%clk 0:03:00.1]} 3... Nf6 {[%clk 0:03:00.5]}
4. Nf3 {[%clk 0:03:00.3]} 4... Be7 {[%clk 0:02:59.3]} 5. Bf4 {[%clk 0:03:00.1]}
5... O-O {[%clk 0:02:58]} 6. e3 {[%clk 0:03:00.4]} 6... Nbd7 {[%clk 0:02:48.5]}
7. cxd5 {[%clk 0:02:59.2]} 7... Nxd5 {[%clk 0:02:46.2]} 8. Bg3 {[%clk
0:02:57.7]} 8... Bb4 {[%clk 0:02:32.1]} 9. Rc1 {[%clk 0:02:41.4]} 9... c5 {[%clk
0:02:29.1]} 10. Bc4 {[%clk 0:02:37.9]} 10... N7f6 {[%clk 0:02:10.9]} 11. O-O
{[%clk 0:02:33.7]} 11... Nxc3 {[%clk 0:02:05.4]} 12. bxc3 {[%clk 0:02:31.8]}
12... Ba3 {[%clk 0:02:06.1]} 13. Rb1 {[%clk 0:02:28.9]} 13... cxd4 {[%clk
0:01:58.3]} 14. cxd4 {[%clk 0:02:28.2]} 14... Bd6 {[%clk 0:01:51.6]} 15. Bh4
{[%clk 0:02:14.6]} 15... b6 {[%clk 0:01:35.6]} 16. Ne5 {[%clk 0:01:49.8]} 16...
Qc7 {[%clk 0:00:52.7]} 17. f4 {[%clk 0:01:18.4]} 17... Bxe5 {[%clk 0:00:40.3]}
18. fxe5 {[%clk 0:01:19.3]} 18... Qxc4 {[%clk 0:00:40.1]} 19. exf6 {[%clk
0:01:19.7]} 19... g6 {[%clk 0:00:40.8]} 20. Qf3 {[%clk 0:01:14]} 20... Ba6
{[%clk 0:00:30.9]} 21. Qf4 {[%clk 0:01:08.5]} 21... Rfc8 {[%clk 0:00:11.9]} 22.
Qh6 {[%clk 0:01:05]} 22... Qxf1+ {[%clk 0:00:10.7]} 23. Rxf1 {[%clk 0:01:03.4]}
23... Bxf1 {[%clk 0:00:11.6]} 24. Qg7# {[%clk 0:01:02.6]} 1-0

[Event "Late-Titled-Tuesday-Blitz-September-26-2023"]
[Site "Chess.com"]
[Date "2023.09.26"]
[Round "4"]
[White "jamengrand"]
[Black "ArtemDyachuk"]
[Result "0-1"]
[WhiteElo "2265"]
[BlackElo "2685"]
[TimeControl "180+1"]
[EndTime "14:36:43 PDT"]
[Termination "ArtemDyachuk won by resignation"]

1. e4 {[%clk 0:02:59.6]} 1... c5 {[%clk 0:02:59.4]} 2. Be2 {[%clk 0:02:58.5]}
2... e6 {[%clk 0:02:55.8]} 3. f4 {[%clk 0:02:55.6]} 3... d5 {[%clk 0:02:55.5]}
4. d3 {[%clk 0:02:53.7]} 4... Nc6 {[%clk 0:02:55]} 5. Nf3 {[%clk 0:02:52.4]}
5... Bd6 {[%clk 0:02:48.7]} 6. O-O {[%clk 0:02:46.3]} 6... Nge7 {[%clk
0:02:47.8]} 7. c3 {[%clk 0:02:37.6]} 7... O-O {[%clk 0:02:46.4]} 8. Be3 {[%clk
0:02:23.5]} 8... f6 {[%clk 0:02:39.2]} 9. Nbd2 {[%clk 0:02:08.9]} 9... d4 {[%clk
0:02:35.1]} 10. cxd4 {[%clk 0:02:08.3]} 10... cxd4 {[%clk 0:02:36]} 11. Nxd4
{[%clk 0:02:06.3]} 11... Bc5 {[%clk 0:02:31.7]} 12. N2b3 {[%clk 0:01:55.3]}
12... Bxd4 {[%clk 0:02:28.8]} 13. Nxd4 {[%clk 0:01:54.8]} 13... Nxd4 {[%clk
0:02:29.7]} 14. Bg4 {[%clk 0:01:47.5]} 14... e5 {[%clk 0:02:18.5]} 15. f5 {[%clk
0:01:45.7]} 15... Nec6 {[%clk 0:02:14.4]} 16. Kh1 {[%clk 0:01:39.8]} 16... Qb6
{[%clk 0:02:11.6]} 17. Rf2 {[%clk 0:01:31.8]} 17... Bd7 {[%clk 0:02:10.6]} 18.
Bh3 {[%clk 0:01:30.5]} 18... Rac8 {[%clk 0:02:08.4]} 19. Qh5 {[%clk 0:01:07.1]}
19... Be8 {[%clk 0:02:06.3]} 20. Qh4 {[%clk 0:01:03.4]} 20... Nb4 {[%clk
0:02:03.7]} 21. Rd1 {[%clk 0:00:58.3]} 21... Rc2 {[%clk 0:01:56.8]} 22. a3
{[%clk 0:00:53.2]} 22... Rxf2 {[%clk 0:01:53.7]} 23. Qxf2 {[%clk 0:00:50.6]}
23... Nbc6 {[%clk 0:01:52.9]} 24. g4 {[%clk 0:00:46.8]} 24... Qb3 {[%clk
0:01:48.6]} 25. Rd2 {[%clk 0:00:42.9]} 25... Kh8 {[%clk 0:01:47.8]} 26. g5
{[%clk 0:00:42.4]} 26... Bh5 {[%clk 0:01:47.5]} 27. gxf6 {[%clk 0:00:40.5]}
27... Bf3+ {[%clk 0:01:46.7]} 28. Kg1 {[%clk 0:00:41]} 28... gxf6 {[%clk
0:01:46]} 29. Qh4 {[%clk 0:00:34.2]} 29... Qf7 {[%clk 0:01:27.1]} 30. Bh6 {[%clk
0:00:29]} 30... Rg8+ {[%clk 0:01:26.6]} 31. Kf2 {[%clk 0:00:29.5]} 31... Bh5
{[%clk 0:01:21.7]} 32. b4 {[%clk 0:00:20.6]} 32... Nf3 {[%clk 0:01:20.5]} 0-1